fUSD/lending_fUSD_20240712
["ID","MTS","AMOUNT","RATE_DAILY","PERIOD"]
[331878894,1720811448894,-982.48,0.00013987,2]
[331878896,1720811448904,-500.0,0.00013987,2]
[331878898,1720811448913,-500.0,0.00013987,2]
[331878900,1720811448923,-500.0,0.00013987,2]
[331878901,1720811448932,-956.56,0.00013987,2]
[331878903,1720811448942,-500.0,0.00013987,2]
[331878905,1720811448951,-500.0,0.00013987,2]
[331878907,1720811448962,-500.0,0.00013987,2]
[331878909,1720811448972,-796.68,0.00013987,2]
[331878911,1720811448981,-739.36,0.00013987,2]
[331878913,1720811448991,-632.84,0.00013987,2]
[331878915,1720811449000,-500.0,0.00013987,2]
[331878917,1720811449009,-932.99,0.00013987,2]
[331878919,1720811449019,-514.89,0.00013987,2]
[331878921,1720811449028,-500.0,0.00013987,2]
[331878923,1720811449038,-709.78,0.00013987,2]
[331878925,1720811449047,-500.0,0.00013987,2]
[331878927,1720811449056,-872.28,0.00013987,2]
[331878929,1720811449066,-1046.8,0.00013987,2]
[331878931,1720811449075,-546.62,0.00013987,2]
[331878932,1720811449084,-918.89,0.00013987,2]
[331878934,1720811449094,-500.0,0.00013987,2]
[331878936,1720811449103,-500.0,0.00013987,2]
[331878938,1720811449113,-500.0,0.00013987,2]
[331878940,1720811449122,-517.7,0.00013987,2]
[331878942,1720811449131,-500.0,0.00013987,2]
[331878944,1720811449140,-500.0,0.00013987,2]
[331878946,1720811449149,-580.81,0.00013987,2]
[331878948,1720811449158,-500.0,0.00013987,2]
[331878950,1720811449167,-500.0,0.00013987,2]
[331878953,1720811449179,-500.0,0.00013987,2]
[331878955,1720811449188,-592.18,0.00013987,2]
[331878957,1720811449197,-673.3,0.00013987,2]
[331878959,1720811449207,-566.31,0.00013989,2]
[331878961,1720811449216,-601.48,0.00013989,2]
[331878963,1720811449227,-500.0,0.00013989,2]
[331878965,1720811449236,-804.38,0.00013989,2]
[331878966,1720811449248,-500.0,0.00013989,2]
[331878968,1720811449257,-787.2,0.00013989,2]
[331878970,1720811449267,-553.83,0.00013989,2]
[331878972,1720811449276,-500.0,0.00013989,2]
[331878974,1720811449286,-500.0,0.00013989,2]
[331878976,1720811449295,-500.0,0.00013989,2]
[331878978,1720811449305,-751.6,0.00013989,2]
[331878980,1720811449314,-564.99,0.00013989,2]
[331878983,1720811449323,-923.73,0.00013989,2]
[331878984,1720811449332,-500.0,0.00013989,2]
[331878986,1720811449342,-0.03450119,0.00013989,2]
[331878989,1720811449354,-499.96549881,0.00013989,2]
[331878991,1720811449363,-659.88,0.00013989,2]
[331878993,1720811449373,-594.00948517,0.00013989,2]
[331878995,1720811449384,-150.46051483,0.00013989,2]
[331878997,1720811449394,-916.27,0.00013989,2]
[331878999,1720811449403,-722.10779969,0.00013989,2]
[331879001,1720811449414,-109.97220031,0.00013989,2]
[331879003,1720811449423,-500.0,0.00013989,2]
[331879005,1720811449432,-612.60922446,0.00013989,2]
[331879007,1720811449444,-354.01077554,0.00013989,2]
[331879009,1720811449453,-507.88918322,0.00013989,2]
[331879011,1720811449464,-388.79081678,0.00013989,2]
[331879013,1720811449474,-796.77918322,0.00013989,2]
[331879037,1720811449707,-112.52081678,0.00013989,2]
[331879039,1720811449718,-540.84,0.00013989,2]
[331879041,1720811449728,-153.39898322,0.00013989,2]
[331879132,1720811592309,1299.61506658,0.00011199,2]
[331879133,1720811592891,530.85773798,0.00011199,2]
[331879134,1720811611172,202.80193142,0.00011199,2]
[331879135,1720811614727,213.07312816,0.00011199,2]
[331879136,1720811640622,308.00309941,0.00011199,2]
[331879137,1720811649908,155.0,0.00011199,2]
[331879138,1720811675347,428.66995195,0.00011199,2]
[331879139,1720811730033,449.18,0.00011004,2]
[331879140,1720811901515,1251.71322753,0.00011199,2]
[331879141,1720811962140,13196.59327523,0.00011199,2]
[331879142,1720811992316,479.38527587,0.00011199,2]
[331879144,1720812101470,155.86366452,0.00011199,2]
[331879146,1720812120170,313.70443052,0.00011199,2]
[331879147,1720812133868,241.61472007,0.00011199,2]
[331879148,1720812143160,203.37476231,0.00011199,2]
[331879149,1720812147063,293.35171719,0.00011199,2]
[331879150,1720812147588,235.78473759,0.00011199,2]
[331879151,1720812150307,308.06841074,0.00011199,2]
[331879152,1720812180258,250.66761864,0.00011199,2]
[331879153,1720812223951,356.17840945,0.00011199,2]
[331879155,1720812332250,227.32181018,0.00011199,2]
[331879156,1720812332739,1055.32337832,0.00011199,2]
[331879157,1720812336953,150.0,0.00011,2]
[331879159,1720812359324,465.12,0.00010668,2]
[331879161,1720812411192,155.0,0.00011199,2]
[331879162,1720812430481,889.498354,0.00011199,2]
[331879163,1720812467962,1116.13469599,0.00011199,2]
[331879166,1720812512822,2657.64241734,0.00011199,2]
[331879190,1720812633565,-4003.48117487,0.000118,2]
[331879191,1720812633575,-310.55707986,0.00012102,2]
[331879192,1720812633585,-10660.03982478,0.00012273,2]
[331879193,1720812633595,-160.11219249,0.00012273,2]
[331879194,1720812633605,-155.17180538,0.00012273,2]
[331879195,1720812633615,-199.2521534,0.00012273,2]
[331879196,1720812633625,-1030.02705023,0.00012314,2]
[331879197,1720812633634,-264.43,0.00012477,2]
[331879198,1720812633644,-250.0,0.00012479,2]
[331879199,1720812633653,-800.0,0.00012486,2]
[331879200,1720812633663,-23890.0,0.00012539,2]
[331879201,1720812633673,-250.0,0.00012565,2]
[331879202,1720812633683,-150.0,0.00012608,2]
[331879203,1720812633692,-500.0,0.00012609,2]
[331879204,1720812633701,-200.0,0.00012679,2]
[331879205,1720812633710,-499.99,0.00012689,2]
[331879206,1720812633720,-500.0,0.00012711,2]
[331879207,1720812633729,-150.99,0.00012797,2]
[331879217,1720812633890,-244.75,0.00012868,2]
[331879219,1720812633902,-2358.88,0.00012868,2]
[331879221,1720812633911,-200.0,0.0001287,2]
[331879223,1720812633921,-465.12,0.00012932,2]
[331879225,1720812633930,-1250.0,0.00013,2]
[331879228,1720812633939,-1322.51760985,0.00013128,2]
[331879230,1720812633949,-300.0,0.00013252,2]
[331879231,1720812633958,-5736.88506793,0.00013428,2]
[331879234,1720812633970,-810.42798062,0.00013428,2]
[331879238,1720812633981,-287.37338502,0.00013428,2]
[331879241,1720812633992,-1973.22629204,0.00013428,2]
[331879247,1720812634028,276.71293214,0.00011199,2]
[331879250,1720812634041,-1579.80960355,0.00013428,2]
[331879252,1720812634053,-3809.27767084,0.00013428,2]
[331879254,1720812634063,-163.4724339,0.00013574,2]
[331879256,1720812634072,-219.89,0.00013699,2]
[331879258,1720812634082,-250.0,0.00013699,2]
[331879260,1720812634091,-255.0,0.00013705,2]
[331879262,1720812634101,-2331.2592108,0.00013719,2]
[331879264,1720812634112,-274.76692443,0.00013719,2]
[331879266,1720812634122,-18938.71065523,0.00013797,2]
[331879268,1720812634131,-2834.29298485,0.00013849,2]
[331879270,1720812634141,-941.34203943,0.00013849,2]
[331879272,1720812634150,-350.40174,0.0001385,2]
[331879274,1720812634159,-12634.1867,0.0001387,2]
[331879276,1720812634169,-163.90313412,0.0001388,2]
[331879278,1720812634178,-11163.1053,0.00013899,2]
[331879280,1720812634187,-646.03932415,0.00013899,2]
[331879282,1720812634202,-155.0,0.00013899,2]
[331879284,1720812634211,-462.35092215,0.00013899,2]
[331879286,1720812634221,-179.28516623,0.000139,2]
[331879288,1720812634231,-1000.0,0.000139,2]
[331879290,1720812634241,-1000.0,0.000139,2]
[331879292,1720812634251,-1000.0,0.000139,3]
[331879294,1720812634261,-1000.0,0.000139,3]
[331879295,1720812634271,-1002.0,0.000139,2]
[331879297,1720812634283,-1000.0,0.000139,3]
[331879299,1720812634292,-1002.0,0.000139,2]
[331879301,1720812634301,-2608.39769034,0.000139,2]
[331879303,1720812634311,-744.89535798,0.000139,2]
[331879305,1720812634320,-178.06,0.00013967,2]
[331879307,1720812634331,-178.06,0.00013968,2]
[331879309,1720812634340,-49126.4740141,0.00013969,2]
[331879311,1720812634350,-203.94857318,0.00013969,2]
[331879313,1720812634359,-61408.0925177,0.0001397,2]
[331879315,1720812634369,-596.89,0.00013977,2]
[331879317,1720812634378,-500.0,0.00013977,2]
[331879319,1720812634387,-500.0,0.00013977,2]
[331879321,1720812634399,-540.16,0.00013977,2]
[331879323,1720812634409,-500.0,0.00013977,2]
[331879325,1720812634419,-500.0,0.00013977,2]
[331879327,1720812634429,-500.0,0.00013977,2]
[331879329,1720812634439,-500.0,0.00013977,2]
[331879331,1720812634448,-682.73,0.00013977,2]
[331879333,1720812634457,-500.0,0.00013977,2]
[331879335,1720812634467,-736.9,0.00013977,2]
[331879337,1720812634477,-500.0,0.00013977,2]
[331879339,1720812634487,-500.0,0.00013977,2]
[331879341,1720812634496,-500.0,0.00013977,2]
[331879343,1720812634505,-522.89,0.00013977,2]
[331879345,1720812634515,-500.0,0.00013977,2]
[331879347,1720812634524,-500.0,0.00013977,2]
[331879349,1720812634536,-500.0,0.00013977,2]
[331879351,1720812634545,-1027.11,0.00013977,2]
[331879353,1720812634555,-500.0,0.00013977,2]
[331879355,1720812634565,-500.0,0.00013977,2]
[331879357,1720812634575,-500.0,0.00013977,2]
[331879359,1720812634584,-500.0,0.00013977,2]
[331879361,1720812634594,-500.0,0.00013977,2]
[331879363,1720812634604,-1631.45,0.00013977,2]
[331879365,1720812634614,-500.0,0.00013977,2]
[331879367,1720812634624,-1101.39,0.00013977,2]
[331879369,1720812634634,-500.0,0.00013977,2]
[331879371,1720812634643,-500.0,0.00013977,2]
[331879373,1720812634652,-1425.56,0.00013977,2]
[331879375,1720812634662,-500.0,0.00013977,2]
[331879377,1720812634672,-500.0,0.00013977,2]
[331879379,1720812634681,-500.0,0.00013977,2]
[331879381,1720812634691,-500.0,0.00013977,2]
[331879383,1720812634701,-500.0,0.00013977,2]
[331879385,1720812634711,-500.0,0.00013977,2]
[331879387,1720812634721,-500.0,0.00013978,2]
[331879388,1720812634730,-500.0,0.00013978,2]
[331879391,1720812634740,-500.0,0.00013978,2]
[331879393,1720812634749,-500.0,0.00013978,2]
[331879394,1720812634759,-500.0,0.00013978,2]
[331879396,1720812634769,-500.0,0.00013978,2]
[331879399,1720812634780,-500.0,0.00013978,2]
[331879400,1720812634790,-500.0,0.00013978,2]
[331879402,1720812634800,-500.0,0.00013978,2]
[331879404,1720812634810,-500.0,0.00013978,2]
[331879406,1720812634820,-500.0,0.00013978,2]
[331879408,1720812634831,-500.0,0.00013978,2]
[331879410,1720812634840,-500.0,0.00013978,2]
[331879412,1720812634850,-500.0,0.00013978,2]
[331879414,1720812634860,-500.0,0.00013978,2]
[331879416,1720812634870,-500.0,0.00013978,2]
[331879419,1720812634880,-500.0,0.00013978,2]
[331879421,1720812634890,-500.0,0.00013978,2]
[331879423,1720812634900,-368.1563181,0.00013978,2]
[331879425,1720812634910,-500.0,0.00013978,2]
[331879427,1720812634919,-500.0,0.00013978,2]
[331879429,1720812634929,-500.0,0.00013978,2]
[331879431,1720812634938,-500.0,0.00013978,2]
[331879433,1720812634948,-500.0,0.00013978,2]
[331879435,1720812634958,-500.0,0.00013978,2]
[331879436,1720812634967,-500.0,0.00013978,2]
[331879438,1720812634978,-500.0,0.00013978,2]
[331879440,1720812634987,-500.0,0.00013978,2]
[331879442,1720812634996,-501.14185122,0.00013978,2]
[331879444,1720812635006,-500.0,0.00013978,2]
[331879446,1720812635016,-500.0,0.00013978,2]
[331879448,1720812635026,-500.0,0.00013978,2]
[331879451,1720812635037,-500.0,0.00013978,2]
[331879452,1720812635047,-500.0,0.00013978,2]
[331879454,1720812635056,-500.0,0.00013978,2]
[331879456,1720812635066,-556.68,0.00013978,2]
[331879458,1720812635076,-500.0,0.00013978,2]
[331879460,1720812635085,-500.0,0.00013978,2]
[331879462,1720812635095,-500.0,0.00013978,2]
[331879465,1720812635105,-500.0,0.00013978,2]
[331879467,1720812635117,-500.0,0.00013978,2]
[331879469,1720812635126,-569.34,0.00013978,2]
[331879471,1720812635136,-500.0,0.00013978,2]
[331879473,1720812635146,-500.0,0.00013978,2]
[331879475,1720812635156,-500.0,0.00013978,2]
[331879477,1720812635166,-500.0,0.00013978,2]
[331879479,1720812635176,-500.0,0.00013978,2]
[331879481,1720812635186,-500.0,0.00013978,2]
[331879483,1720812635196,-500.0,0.00013978,2]
[331879485,1720812635208,-500.0,0.00013978,2]
[331879487,1720812635218,-500.0,0.00013978,2]
[331879489,1720812635227,-500.0,0.00013978,2]
[331879491,1720812635238,-459.81261465,0.00013978,2]
[331879493,1720812635247,-500.0,0.00013978,2]
[331879495,1720812635256,-500.0,0.00013978,2]
[331879497,1720812635266,-599.75,0.00013978,2]
[331879499,1720812635275,-500.0,0.00013978,2]
[331879501,1720812635289,-500.0,0.00013978,2]
[331879503,1720812635299,-500.0,0.00013978,2]
[331879505,1720812635308,-500.0,0.00013978,2]
[331879507,1720812635318,-500.0,0.00013978,2]
[331879509,1720812635327,-500.0,0.00013978,2]
[331879510,1720812635336,-500.0,0.00013978,2]
[331879512,1720812635346,-500.0,0.00013978,2]
[331879515,1720812635356,-500.0,0.00013978,2]
[331879516,1720812635365,-627.5,0.00013978,2]
[331879518,1720812635375,-500.0,0.00013978,2]
[331879520,1720812635385,-500.0,0.00013978,2]
[331879523,1720812635395,-500.0,0.00013978,2]
[331879524,1720812635404,-500.0,0.00013978,2]
[331879526,1720812635414,-500.0,0.00013978,2]
[331879528,1720812635424,-500.0,0.00013978,2]
[331879530,1720812635433,-682.47,0.00013978,2]
[331879532,1720812635443,-471.13611322,0.00013978,2]
[331879535,1720812635453,-500.0,0.00013978,2]
[331879536,1720812635463,-500.0,0.00013978,2]
[331879538,1720812635474,-500.0,0.00013978,2]
[331879540,1720812635483,-500.0,0.00013978,2]
[331879542,1720812635493,-649.26,0.00013978,2]
[331879544,1720812635503,-600.43,0.00013978,2]
[331879546,1720812635513,-500.0,0.00013978,2]
[331879548,1720812635523,-454.97806988,0.00013978,2]
[331879550,1720812635534,-500.0,0.00013978,2]
[331879552,1720812635543,-500.0,0.00013978,2]
[331879554,1720812635553,-500.0,0.00013978,2]
[331879556,1720812635562,-500.0,0.00013978,2]
[331879558,1720812635572,-660.61,0.00013978,2]
[331879560,1720812635582,-992.74,0.00013978,2]
[331879562,1720812635591,-500.0,0.00013978,2]
[331879564,1720812635601,-500.0,0.00013978,2]
[331879566,1720812635611,-500.0,0.00013978,2]
[331879567,1720812635620,-500.0,0.00013978,2]
[331879568,1720812635630,-500.0,0.00013978,2]
[331879569,1720812635639,-500.0,0.00013978,2]
[331879570,1720812635648,-500.0,0.00013978,2]
[331879571,1720812635658,-500.0,0.00013978,2]
[331879572,1720812635667,-500.0,0.00013978,2]
[331879573,1720812635677,-500.0,0.00013978,2]
[331879574,1720812635686,-500.0,0.00013978,2]
[331879575,1720812635696,-570.62,0.00013978,2]
[331879576,1720812635706,-407.08764167,0.00013978,2]
[331879577,1720812635715,-500.0,0.00013978,2]
[331879578,1720812635725,-500.0,0.00013978,2]
[331879579,1720812635735,-500.0,0.00013978,2]
[331879580,1720812635744,-803.38,0.00013978,2]
[331879581,1720812635754,-500.0,0.00013978,2]
[331879582,1720812635764,-592.79,0.00013978,2]
[331879583,1720812635773,-500.0,0.00013978,2]
[331879584,1720812635783,-500.0,0.00013978,2]
[331879585,1720812635794,-500.0,0.00013978,2]
[331879587,1720812635804,-827.72,0.00013978,2]
[331879589,1720812635814,-821.37,0.00013978,2]
[331879591,1720812635825,-500.0,0.00013978,2]
[331879593,1720812635834,-500.0,0.00013978,2]
[331879595,1720812635843,-500.0,0.00013978,2]
[331879597,1720812635853,-500.0,0.00013978,2]
[331879600,1720812635863,-500.0,0.00013978,2]
[331879601,1720812635873,-500.0,0.00013978,2]
[331879604,1720812635883,-595.39,0.00013978,2]
[331879605,1720812635892,-500.0,0.00013978,2]
[331879607,1720812635901,-500.0,0.00013978,2]
[331879609,1720812635911,-500.0,0.00013978,2]
[331879611,1720812635920,-500.0,0.00013978,2]
[331879613,1720812635930,-500.0,0.00013978,2]
[331879615,1720812635940,-500.0,0.00013978,2]
[331879617,1720812635949,-500.0,0.00013978,2]
[331879619,1720812635959,-500.0,0.00013978,2]
[331879621,1720812635968,-500.0,0.00013978,2]
[331879623,1720812635978,-500.0,0.00013978,2]
[331879625,1720812635987,-941.55,0.00013978,2]
[331879627,1720812635997,-500.0,0.00013978,2]
[331879629,1720812636006,-500.0,0.00013978,2]
[331879631,1720812636015,-500.0,0.00013978,2]
[331879633,1720812636025,-500.0,0.00013978,2]
[331879635,1720812636036,-500.0,0.00013978,2]
[331879637,1720812636046,-500.0,0.00013978,2]
[331879639,1720812636055,-333.06,0.00013978,2]
[331879641,1720812636065,-524.61,0.00013978,2]
[331879643,1720812636074,-500.0,0.00013978,2]
[331879645,1720812636084,-645.04,0.00013978,2]
[331879647,1720812636093,-500.0,0.00013978,2]
[331879649,1720812636102,-500.0,0.00013978,2]
[331879651,1720812636112,-500.0,0.00013978,2]
[331879653,1720812636122,-500.0,0.00013978,2]
[331879655,1720812636131,-500.0,0.00013978,2]
[331879657,1720812636140,-500.0,0.00013978,2]
[331879659,1720812636149,-500.0,0.00013978,2]
[331879661,1720812636159,-500.0,0.00013978,2]
[331879663,1720812636168,-724.73,0.00013978,2]
[331879665,1720812636178,-500.0,0.00013978,2]
[331879667,1720812636189,-500.0,0.00013978,2]
[331879669,1720812636201,-500.0,0.00013978,2]
[331879671,1720812636212,-500.0,0.00013978,2]
[331879672,1720812636222,-500.0,0.00013978,2]
[331879674,1720812636231,-500.0,0.00013978,2]
[331879676,1720812636241,-916.7,0.00013978,2]
[331879678,1720812636251,-500.0,0.00013978,2]
[331879680,1720812636260,-500.0,0.00013978,2]
[331879682,1720812636270,-631.33,0.00013978,2]
[331879685,1720812636283,-500.0,0.00013978,2]
[331879686,1720812636292,-1050.71,0.00013978,2]
[331879688,1720812636302,-536.5,0.00013978,2]
[331879691,1720812636312,-500.0,0.00013978,2]
[331879693,1720812636322,-500.0,0.00013978,2]
[331879695,1720812636333,-500.0,0.00013978,2]
[331879697,1720812636342,-613.27591406,0.00013978,2]
[331879710,1720812636465,-500.0,0.00013978,2]
[331879713,1720812636482,-480.14321456,0.00013978,2]
[331879715,1720812636492,-500.0,0.00013978,2]
[331879717,1720812636502,-500.0,0.00013978,2]
[331879719,1720812636512,-500.0,0.00013978,2]
[331879721,1720812636521,-850.91,0.00013978,2]
[331879723,1720812636530,-500.0,0.00013978,2]
[331879725,1720812636541,-500.0,0.00013978,2]
[331879727,1720812636550,-500.0,0.00013978,2]
[331879729,1720812636559,-763.49,0.00013978,2]
[331879731,1720812636569,-500.0,0.00013978,2]
[331879733,1720812636579,-500.0,0.00013978,2]
[331879735,1720812636588,-708.55,0.00013978,2]
[331879737,1720812636597,-500.0,0.00013978,2]
[331879739,1720812636606,-500.0,0.00013978,2]
[331879741,1720812636616,-500.0,0.00013978,2]
[331879743,1720812636626,-775.18,0.00013978,2]
[331879745,1720812636635,-500.0,0.00013978,2]
[331879747,1720812636646,-500.0,0.00013978,2]
[331879749,1720812636656,-500.0,0.00013978,2]
[331879751,1720812636666,-500.0,0.00013978,2]
[331879753,1720812636676,-500.0,0.00013978,2]
[331879754,1720812636685,-606.47,0.00013978,2]
[331879757,1720812636695,-500.0,0.00013978,2]
[331879759,1720812636705,-500.0,0.00013978,2]
[331879760,1720812636714,-500.0,0.00013978,2]
[331879762,1720812636723,-500.0,0.00013978,2]
[331879764,1720812636732,-500.0,0.00013978,2]
[331879766,1720812636742,-500.0,0.00013978,2]
[331879768,1720812636751,-500.0,0.00013978,2]
[331879770,1720812636760,-500.0,0.00013978,2]
[331879772,1720812636769,-554.59,0.00013978,2]
[331879774,1720812636779,-500.0,0.00013978,2]
[331879776,1720812636790,-500.0,0.00013978,2]
[331879778,1720812636799,-894.11,0.00013978,2]
[331879780,1720812636809,-811.54,0.00013978,2]
[331879782,1720812636819,-500.0,0.00013978,2]
[331879784,1720812636831,-500.0,0.00013978,2]
[331879786,1720812636840,-500.0,0.00013978,2]
[331879788,1720812636850,-794.5,0.00013978,2]
[331879791,1720812636859,-763.1,0.00013978,2]
[331879792,1720812636870,-500.0,0.00013978,2]
[331879794,1720812636879,-500.0,0.00013978,2]
[331879797,1720812636889,-684.93,0.00013978,2]
[331879799,1720812636899,-500.0,0.00013978,2]
[331879801,1720812636910,-500.0,0.00013978,2]
[331879803,1720812636919,-1003.18,0.00013978,2]
[331879805,1720812636929,-544.58,0.00013978,2]
[331879807,1720812636939,-500.0,0.00013978,2]
[331879809,1720812636948,-500.0,0.00013978,2]
[331879811,1720812636958,-3698.91,0.00013978,2]
[331879813,1720812636967,-500.0,0.00013978,2]
[331879815,1720812636977,-544.58,0.00013978,2]
[331879817,1720812636986,-680.21,0.00013978,2]
[331879819,1720812636996,-500.0,0.00013978,2]
[331879820,1720812637005,-500.0,0.00013978,2]
[331879822,1720812637015,-500.0,0.00013978,2]
[331879824,1720812637025,-500.0,0.00013978,2]
[331879826,1720812637035,-500.0,0.00013978,2]
[331879828,1720812637045,-500.0,0.00013978,2]
[331879830,1720812637054,-835.93,0.00013978,2]
[331879832,1720812637064,-500.0,0.00013978,2]
[331879834,1720812637074,-1003.43,0.00013978,2]
[331879836,1720812637084,-881.35,0.00013978,2]
[331879838,1720812637094,-500.0,0.00013978,2]
[331879840,1720812637103,-500.0,0.00013978,2]
[331879842,1720812637113,-500.0,0.00013978,2]
[331879844,1720812637122,-500.0,0.00013978,2]
[331879846,1720812637132,-500.0,0.00013978,2]
[331879848,1720812637142,-500.0,0.00013978,2]
[331879850,1720812637151,-846.03,0.00013978,2]
[331879852,1720812637160,-544.77,0.00013978,2]
[331879854,1720812637170,-500.0,0.00013978,2]
[331879856,1720812637179,-500.0,0.00013978,2]
[331879858,1720812637189,-500.0,0.00013978,2]
[331879860,1720812637203,-1094.09,0.00013978,2]
[331879862,1720812637212,-500.0,0.00013978,2]
[331879864,1720812637221,-500.0,0.00013978,2]
[331879866,1720812637230,-213.83327241,0.00013978,2]
[331879868,1720812637239,-944.08,0.00013978,2]
[331879870,1720812637250,-500.0,0.00013978,2]
[331879872,1720812637259,-856.42,0.00013978,2]
[331879874,1720812637268,-500.0,0.00013978,2]
[331879876,1720812637278,-523.84,0.00013978,2]
[331879878,1720812637288,-392.42110838,0.00013978,2]
[331879880,1720812637297,-1028.11,0.00013978,2]
[331879882,1720812637307,-500.0,0.00013978,2]
[331879884,1720812637316,-880.6,0.00013978,2]
[331879886,1720812637326,-594.24,0.00013978,2]
[331879888,1720812637335,-580.4,0.00013978,2]
[331879890,1720812637345,-500.0,0.00013978,2]
[331879892,1720812637354,-500.0,0.00013978,2]
[331879894,1720812637364,-500.0,0.00013978,2]
[331879896,1720812637373,-500.0,0.00013978,2]
[331879898,1720812637383,-819.54,0.00013978,2]
[331879900,1720812637392,-500.0,0.00013978,2]
[331879902,1720812637401,-500.0,0.00013978,2]
[331879904,1720812637411,-500.0,0.00013978,2]
[331879906,1720812637420,-500.0,0.00013978,2]
[331879908,1720812637429,-500.0,0.00013978,2]
[331879910,1720812637439,-500.0,0.00013978,2]
[331879912,1720812637449,-500.0,0.00013978,2]
[331879914,1720812637458,-500.0,0.00013978,2]
[331879916,1720812637467,-500.0,0.00013978,2]
[331879918,1720812637477,-549.86,0.00013978,2]
[331879920,1720812637487,-500.0,0.00013978,2]
[331879922,1720812637495,-581.49,0.00013978,2]
[331879924,1720812637505,-659.22,0.00013978,2]
[331879926,1720812637514,-500.0,0.00013978,2]
[331879928,1720812637524,-500.0,0.00013978,2]
[331879930,1720812637534,-500.0,0.00013978,2]
[331879932,1720812637544,-500.0,0.00013978,2]
[331879934,1720812637553,-500.0,0.00013978,2]
[331879936,1720812637563,-500.0,0.00013978,2]
[331879938,1720812637572,-500.0,0.00013978,2]
[331879940,1720812637582,-500.0,0.00013978,2]
[331879942,1720812637591,-500.0,0.00013978,2]
[331879944,1720812637601,-273.44878528,0.00013978,2]
[331879946,1720812637610,-500.0,0.00013978,2]
[331879948,1720812637620,-734.69,0.00013978,2]
[331879950,1720812637629,-629.07206186,0.00013978,2]
[331879952,1720812637639,-500.0,0.00013978,2]
[331879954,1720812637649,-801.52,0.00013978,2]
[331879957,1720812637659,-956.05,0.00013978,2]
[331879958,1720812637668,-500.0,0.00013978,2]
[331879960,1720812637678,-500.0,0.00013978,2]
[331879962,1720812637687,-500.0,0.00013978,2]
[331879964,1720812637697,-908.18,0.00013978,2]
[331879966,1720812637707,-500.0,0.00013978,2]
[331879969,1720812637716,-500.0,0.00013978,2]
[331879970,1720812637726,-500.0,0.00013978,2]
[331879972,1720812637735,-500.0,0.00013978,2]
[331879975,1720812637746,-500.0,0.00013978,2]
[331879977,1720812637756,-975.01,0.00013978,2]
[331879979,1720812637766,-500.0,0.00013978,2]
[331879981,1720812637775,-514.59,0.00013978,2]
[331879982,1720812637788,-500.0,0.00013978,2]
[331879984,1720812637800,-1063.69,0.00013978,2]
[331879986,1720812637810,-500.0,0.00013978,2]
[331879988,1720812637820,-505.63,0.00013978,2]
[331879990,1720812637830,-718.39,0.00013978,2]
[331879992,1720812637839,-599.14,0.00013978,2]
[331879994,1720812637849,-500.0,0.00013978,2]